bitfinex/quotes_ETHUSD_20260108
["timestamp","ask_amount","ask_price","bid_price","bid_amount"]
[1767895092092,0.837,3134.4,3133.6,0.001]
[1767895092305,0.837,3134.4,3133.6,0.97975952]
[1767895092992,0.8826952,3134.3,3133.6,0.001]
[1767895093196,1.05466472,3134.3,3133.6,0.001]
[1767895093391,1.05466472,3134.3,3132.9,6.38486158]
[1767895093994,0.8816952,3134.1,3132.9,0.001]
[1767895095605,0.8816952,3133.9,3132.9,0.001]
[1767895095835,0.8816952,3133.7,3132.2,3.19264201]
[1767895096000,0.1306952,3133.5,3132.4,3.19236944]
[1767895096401,0.1306952,3133.5,3132.3,3.51177072]
[1767895096601,0.9676952,3133.4,3132.3,6.70431294]
[1767895096904,0.1286952,3133.3,3132.3,3.51177072]
[1767895097322,0.1286952,3133.3,3132.3,6.70431294]
[1767895097629,0.837,3133.4,3132.5,0.97875952]
[1767895098136,0.1266952,3133.3,3132.0,0.97875952]
[1767895098428,0.1266952,3133.3,3131.9,0.001]
[1767895098429,0.1266952,3133.2,3131.9,0.001]
[1767895098626,0.1266952,3133.1,3132.0,0.97875952]
[1767895099397,0.1266952,3133.1,3132.0,4.17159783]
[1767895099807,0.1266952,3133.1,3132.0,0.97875952]
[1767895100101,3.31846929,3133.1,3132.0,4.17159246]
[1767895100535,6.51024338,3133.1,3132.0,0.97875952]
[1767895100703,0.72535811,3133.0,3132.0,0.97875952]
[1767895101421,0.72535811,3133.0,3132.0,0.97576346]
[1767895102038,3.32162205,3132.9,3131.9,0.001]
[1767895102339,0.837,3132.8,3131.9,0.001]
[1767895102542,0.837,3132.8,3132.0,0.97875952]
[1767895102707,1.31241876,3132.8,3131.9,0.001]
[1767895102903,0.12969126,3132.7,3131.9,0.001]
[1767895103208,1.31241876,3132.8,3131.9,0.97975952]
[1767895103209,0.47541876,3132.8,3131.9,0.97975952]
[1767895103434,0.837,3132.6,3131.9,0.97975952]
[1767895104309,0.837,3132.6,3132.0,0.97875952]
[1767895104509,0.837,3132.6,3132.1,0.03192746]
[1767895104710,0.837,3132.6,3132.1,0.97875952]
[1767895106937,0.837,3132.6,3131.9,0.97975952]
[1767895107107,0.837,3132.6,3132.1,0.97875952]
[1767895109841,0.837,3132.6,3132.2,0.97875952]
[1767895110043,0.838,3133.0,3132.2,0.97875952]
[1767895110645,0.838,3133.0,3132.2,1.01068596]
[1767895111045,0.838,3133.0,3132.4,0.97875952]
[1767895113747,0.002,3132.7,3132.4,0.97875952]
[1767895114235,0.002,3132.7,3132.4,4.17119471]
[1767895114623,0.002,3132.7,3132.5,1.3810766]
[1767895115316,0.002,3132.7,3132.5,4.15628444]
[1767895115520,0.002,3132.7,3132.6,0.96395713]
[1767895116549,0.002,3132.7,3132.4,4.15637799]
[1767895117150,0.002,3132.7,3132.4,3.19242086]
[1767895117452,0.002,3132.7,3132.2,6.3852615]
[1767895117665,0.002,3132.7,3132.3,0.77664785]
[1767895118861,0.002,3132.7,3132.3,1.74060498]
[1767895119425,0.002,3132.7,3132.4,4.15639743]
[1767895121329,0.002,3132.7,3132.4,0.96395713]
[1767895121646,0.002,3132.7,3132.3,3.96918596]
[1767895121843,0.002,3132.7,3132.4,3.19243579]
[1767895122050,0.002,3132.7,3132.4,4.15639292]
[1767895122225,0.002,3132.7,3132.5,0.96395713]
[1767895125654,0.002,3132.7,3132.3,4.93311739]
[1767895126432,0.002,3132.7,3132.4,3.19243675]
[1767895126871,0.002,3132.7,3132.5,3.19232888]
[1767895127945,0.002,3132.7,3132.4,3.1924403]
[1767895129159,0.002,3132.7,3132.3,3.96914215]
[1767895130143,0.002,3132.7,3132.2,3.19256675]
[1767895130959,0.13169126,3132.7,3132.2,3.19256675]
[1767895131329,0.002,3132.7,3132.2,3.19256675]
[1767895131541,0.002,3132.7,3132.3,3.19254009]
[1767895132331,0.002,3132.7,3132.3,1.6024745]
[1767895133758,0.002,3132.7,3132.3,0.96395713]
[1767895134251,0.002,3132.7,3132.5,0.96395713]
[1767895134456,0.002,3132.7,3132.4,3.1924403]
[1767895135183,0.002,3132.7,3132.5,0.96395713]
[1767895135469,0.002,3133.0,3132.7,0.96395713]
[1767895135858,0.838,3133.3,3132.7,1.14035284]
[1767895136447,0.838,3133.3,3132.8,4.15598981]
[1767895137551,0.838,3133.3,3132.9,0.96395713]
[1767895138876,0.838,3133.3,3132.9,4.15584652]
[1767895139043,0.838,3133.3,3132.9,6.38382018]
[1767895139252,0.838,3133.3,3133.0,0.96395713]
[1767895139757,0.838,3133.3,3132.9,3.84791098]
[1767895140074,0.002,3133.0,3132.9,3.84791098]
[1767895140387,0.002,3134.0,3132.9,3.84791098]
[1767895140388,0.838,3133.7,3133.0,0.96395713]
[1767895140731,0.838,3133.7,3133.2,0.96395713]
[1767895142232,0.838,3133.7,3133.0,4.15577511]
[1767895142431,1.37058951,3133.7,3133.0,3.19181798]
[1767895142674,0.12969126,3133.6,3132.7,1.16750587]
[1767895142885,3.32093043,3133.6,3132.7,0.99111016]
[1767895143039,0.12969126,3133.6,3132.7,4.18319463]
[1767895143479,0.12969126,3133.6,3132.7,7.37532921]
[1767895143777,0.12969126,3133.6,3132.7,4.18319463]
[1767895143982,1.24089825,3133.7,3132.7,4.18319463]
[1767895143983,1.24089825,3133.7,3132.8,0.99111016]
[1767895144310,0.838,3133.7,3132.9,2.0141529]
[1767895144849,0.838,3133.7,3133.0,3.19182891]
[1767895146243,0.002,3134.0,3133.5,0.98301893]
[1767895147076,0.002,3134.0,3133.6,0.98301893]
[1767895147261,0.002,3134.0,3133.6,2.00509239]
[1767895147951,0.002,3134.0,3133.6,1.02207346]
[1767895148916,0.002,3134.0,3133.7,3.19111593]
[1767895149114,0.002,3134.0,3133.7,4.17413486]
[1767895150096,0.002,3134.6,3134.2,0.98301893]
[1767895150396,0.002,3134.6,3134.2,0.87212771]
[1767895150692,0.002,3134.6,3134.3,0.98301893]
[1767895150895,0.002,3134.6,3134.0,2.85509815]
[1767895151064,2.85509815,3134.4,3133.5,3.19124906]
[1767895151261,0.002,3134.6,3133.6,0.98301893]
[1767895151881,0.002,3134.6,3134.0,3.19075686]
[1767895152082,0.002,3134.6,3134.1,0.98301893]
[1767895152496,0.002,3134.6,3134.1,4.17368196]
[1767895152791,0.002,3134.6,3134.1,3.19066303]
[1767895152965,0.002,3134.6,3134.1,3.19065467]
[1767895153578,0.002,3134.3,3134.2,0.98301893]
[1767895154473,0.002,3134.6,3134.3,0.98301893]
[1767895155605,0.002,3134.6,3134.1,0.98301893]
[1767895155805,0.002,3134.6,3134.2,0.98301893]
[1767895156893,0.40642273,3134.6,3133.3,0.98301893]
[1767895157074,0.40442273,3134.5,3133.6,3.19115822]
[1767895157401,3.19040326,3134.4,3133.5,3.19129442]
[1767895157700,3.59482599,3134.4,3133.5,3.19129442]
[1767895158199,3.59482599,3134.4,3133.4,4.1743983]
[1767895158378,0.40442273,3134.3,3133.4,6.38280082]
[1767895158569,0.40442273,3134.4,3133.4,7.18968049]
[1767895158774,0.40442273,3134.4,3133.4,6.38280082]
[1767895159082,3.19034708,3134.5,3133.4,7.36581975]
[1767895159798,4.43362758,3134.6,3133.5,0.98301893]
[1767895160395,0.839,3134.6,3133.6,0.98301893]
[1767895160695,0.002,3134.6,3133.9,0.98301893]
[1767895161776,0.002,3134.6,3134.1,0.98301893]
[1767895162790,0.002,3134.6,3134.2,0.98301893]
[1767895162992,0.837,3135.2,3134.4,0.98301893]
[1767895163189,4.02662454,3135.2,3134.4,0.98301893]
[1767895163814,7.21624908,3135.2,3134.2,3.19050908]
[1767895164018,0.40442273,3135.1,3134.2,3.19053938]
[1767895164307,0.76206718,3135.0,3134.2,3.19053938]
[1767895164986,0.76206718,3135.0,3134.1,3.19070865]
[1767895165383,3.95186936,3135.0,3134.0,4.17378]
[1767895165703,0.002,3134.9,3134.0,7.36459046]
[1767895165882,0.002,3134.9,3134.0,4.91023905]
[1767895166848,0.40642273,3134.9,3133.8,4.17399313]
[1767895167009,0.40642273,3134.9,3133.9,3.19083409]
[1767895167209,3.5944189,3134.8,3133.8,4.17398657]
[1767895167714,3.19194117,3134.9,3133.9,0.98301893]
[1767895169013,6.38188234,3134.9,3133.9,0.98301893]
[1767895169213,0.75483723,3134.8,3133.9,0.98301893]
[1767895169889,0.75483723,3134.8,3133.9,4.17392095]
[1767895170524,0.75483723,3134.8,3134.0,0.98301893]
[1767895170889,3.19194117,3134.9,3134.0,0.98301893]
[1767895171685,0.002,3134.9,3134.0,0.98301893]
[1767895171895,0.002,3134.9,3134.1,0.98301893]
[1767895173218,0.40642273,3134.9,3134.0,3.19073269]
[1767895173596,3.18999617,3134.8,3133.9,3.19087394]
[1767895173790,0.35964189,3134.7,3133.9,3.19087394]
[1767895174018,0.35964189,3134.7,3134.0,0.99455837]
[1767895174713,0.3576419,3134.7,3134.2,0.99455837]
[1767895176597,3.54774573,3134.7,3134.2,0.87222542]
[1767895176909,0.3576419,3134.7,3134.2,0.41338679]
[1767895177110,0.35477185,3134.6,3134.2,0.41338679]
[1767895177510,3.19192889,3134.9,3134.2,0.41338679]
[1767895179594,0.002,3134.6,3134.2,0.41338679]
[1767895180697,0.002,3134.6,3134.2,3.60397653]
[1767895181018,0.002,3134.6,3134.3,0.99455837]
[1767895181389,0.002,3134.6,3134.2,3.19059403]
[1767895181390,3.19164592,3135.2,3134.6,0.99455837]
[1767895181600,0.40286459,3135.1,3134.4,0.99455837]
[1767895182323,0.40286459,3135.1,3134.1,2.85294954]
[1767895182324,2.85294954,3134.7,3134.1,0.99455837]
[1767895182630,6.0429168,3134.9,3134.1,0.99455837]
[1767895183523,3.18996726,3134.9,3134.1,0.99455837]
[1767895183720,6.0429168,3134.9,3134.1,0.99455837]
[1767895183893,0.93194546,3134.8,3134.1,0.99455837]
[1767895184732,3.19009793,3134.7,3134.1,0.99455837]
[1767895184893,6.04304747,3134.7,3133.9,0.99455837]
[1767895185093,9.2331454,3134.7,3133.9,0.99455837]
[1767895185419,4.95895543,3134.8,3134.0,0.99455837]
[1767895185643,0.837,3134.8,3134.1,0.99455837]
[1767895185932,4.02700475,3134.8,3134.2,0.99455837]
[1767895188037,1.03812546,3134.4,3133.7,0.001]
[1767895188336,2.85294954,3134.2,3133.7,0.001]
[1767895188535,0.38043322,3134.1,3133.7,0.001]
[1767895189049,2.85294954,3134.0,3133.2,0.99256034]
[1767895189258,2.85294954,3134.0,3133.0,3.19177009]
[1767895189406,2.85294954,3134.0,3133.2,3.19160101]
[1767895189599,2.85294954,3134.0,3133.1,3.19171095]
[1767895189923,0.41847654,3133.9,3133.0,3.84750791]
[1767895190124,1.33181587,3134.1,3133.0,3.84750791]
[1767895190125,4.52255574,3134.1,3133.1,4.18628541]
[1767895190599,0.38043322,3134.1,3133.3,0.99455837]
[1767895190798,0.837,3134.3,3133.5,0.99455837]
[1767895191630,0.837,3134.7,3133.8,3.84750791]
[1767895191848,1.78838265,3134.7,3133.6,3.84750791]
[1767895192137,4.14158235,3134.6,3133.6,6.04411453]
[1767895192302,0.95138265,3134.5,3133.6,6.04411453]
[1767895192498,0.95138265,3134.5,3133.6,3.79557644]
[1767895193122,0.95338265,3134.4,3133.6,3.79557644]
[1767895193522,0.95338265,3134.4,3133.9,1.3]
[1767895193726,0.002,3134.4,3133.9,1.3]
[1767895193940,0.002,3134.4,3133.7,2.85294954]
[1767895194241,0.002,3134.4,3133.8,4.17498075]
[1767895194541,0.002,3134.4,3133.9,2.85294954]
[1767895194742,0.002,3134.7,3134.2,2.85294954]
[1767895195519,0.002,3134.7,3134.0,0.99455837]
[1767895195720,0.002,3134.7,3134.1,2.85294954]
[1767895195931,0.002,3134.7,3134.3,2.85294954]
[1767895196141,0.002,3134.7,3134.4,0.99455837]
[1767895196332,0.002,3134.7,3134.3,2.85294954]
[1767895196743,0.002,3134.7,3134.3,6.04344275]
[1767895196945,0.002,3134.7,3134.2,3.19056494]
[1767895197454,0.002,3134.7,3134.3,3.19049083]
[1767895198437,0.002,3134.7,3134.3,4.8518714]
[1767895198642,0.002,3134.7,3134.3,3.5518714]
[1767895200246,0.002,3134.7,3134.3,6.7423481]
[1767895200421,0.002,3134.7,3134.3,3.88939856]
[1767895200743,0.002,3134.7,3134.3,3.1904767]
[1767895200940,0.002,3134.7,3134.3,10.07093129]
[1767895201448,0.002,3134.7,3134.2,3.85]
[1767895201659,0.95138265,3134.5,3133.6,0.837]
[1767895201862,0.95138265,3134.1,3133.6,0.837]
[1767895202071,0.95138265,3134.1,3132.6,3.19218948]
[1767895202072,0.95138265,3133.6,3132.5,0.99455837]
[1767895202364,4.12294356,3134.3,3133.2,2.85294954]
[1767895202572,0.93240689,3134.2,3133.2,2.85294954]
[1767895202717,0.93240689,3133.9,3133.1,0.837]
[1767895202912,4.12294356,3134.3,3133.2,2.88486579]
[1767895203118,4.90423287,3134.3,3133.3,0.37218658]
[1767895203343,0.93240689,3134.0,3133.3,0.37218658]
[1767895203648,0.93240689,3134.2,3133.1,3.68994954]
[1767895203849,0.93240689,3134.6,3133.6,0.8]
[1767895204049,4.12260659,3134.6,3133.7,2.85294954]
[1767895204352,0.93240689,3134.6,3133.9,2.85294954]
[1767895204566,0.93440689,3135.2,3133.9,0.98715886]
[1767895205324,4.12452391,3134.7,3133.9,1.05604958]
[1767895205637,3.19211702,3134.7,3133.9,0.95524974]
[1767895206220,0.002,3134.3,3133.9,0.95524974]
[1767895207157,0.93440689,3134.3,3133.6,0.8]
[1767895207332,0.002,3134.3,3133.0,0.95524974]
[1767895207532,0.93440689,3134.3,3133.1,1.25171213]
[1767895207755,0.002,3134.3,3133.6,0.95524974]
[1767895207919,0.002,3134.3,3133.7,0.03191115]
[1767895208128,0.002,3134.3,3133.1,4.02868294]
[1767895208129,0.002,3134.3,3133.3,0.95524974]
[1767895208329,0.002,3134.3,3132.8,3.49622291]
[1767895208330,0.002,3134.3,3133.4,0.837]
[1767895208525,0.002,3134.3,3133.4,1.79224974]
[1767895208726,0.93440689,3134.3,3133.4,0.837]
[1767895208927,0.93440689,3134.3,3133.5,0.40284616]
[1767895209484,0.002,3134.3,3133.5,0.40284616]
[1767895209764,0.002,3134.3,3133.6,0.03191217]
[1767895210331,0.002,3134.3,3133.7,3.19111593]
[1767895210556,0.002,3134.6,3133.8,0.03191014]
[1767895210859,0.002,3134.6,3133.9,1.56882305]
[1767895211158,0.002,3134.6,3133.9,0.73182305]
[1767895211455,0.002,3134.6,3134.0,0.837]
[1767895214443,0.002,3134.6,3134.0,4.02780462]
[1767895214840,0.002,3134.6,3134.0,0.837]
[1767895215161,4.09724751,3135.4,3134.1,0.93599554]
[1767895215459,0.90783117,3135.1,3134.2,0.81545917]
[1767895215760,0.90783117,3135.1,3134.3,0.837]
[1767895216452,0.90783117,3135.1,3133.9,0.837]
[1767895216852,0.90783117,3135.1,3133.9,0.86890912]
[1767895217263,0.90783117,3135.1,3134.0,3.19078945]
[1767895217264,3.18979266,3135.0,3134.0,3.19078945]
[1767895217460,3.18979266,3135.0,3133.9,0.837]
[1767895217461,7.28741649,3135.0,3133.9,0.837]
[1767895217681,0.31897927,3134.9,3134.0,0.90408847]
[1767895217837,3.18979266,3135.0,3134.1,0.03190708]
[1767895218857,0.002,3134.8,3134.1,3.22256487]
[1767895219236,0.002,3134.8,3134.1,0.03190708]
[1767895219434,0.90983117,3134.8,3133.4,0.90408847]
[1767895219638,0.90983117,3134.8,3133.5,1.74108847]
[1767895219877,0.90983117,3134.8,3133.7,3.19110161]
[1767895220039,0.90983117,3134.8,3133.9,3.19085163]
[1767895221138,4.09983359,3134.8,3133.7,6.38221754]
[1767895221373,0.002,3134.8,3133.8,0.90408847]
[1767895221554,0.002,3134.8,3133.9,1.63271907]
[1767895221761,0.002,3134.8,3134.0,1.74108847]
[1767895222276,0.002,3135.1,3134.1,0.93599555]
[1767895222636,3.19169706,3135.1,3134.1,0.90408847]
[1767895223202,0.002,3135.1,3134.1,0.90408847]
[1767895224586,0.90983117,3135.1,3134.0,0.837]
[1767895224774,0.90983117,3135.1,3134.1,3.19068119]
[1767895225285,4.0996133,3135.1,3134.1,3.19068119]
[1767895225583,4.0996133,3135.1,3134.2,0.93599453]
[1767895225584,0.41016133,3135.0,3134.2,0.93599453]
[1767895226559,0.41016133,3135.0,3134.3,3.19050505]
[1767895228189,3.60002164,3135.0,3134.2,4.09463838]
[1767895228396,3.60002164,3135.0,3134.0,4.93189814]
[1767895228696,0.41016133,3135.0,3134.1,3.19070865]
[1767895228858,0.90783117,3135.0,3134.1,3.19070865]
[1767895229057,0.90783117,3135.0,3134.0,3.68938376]
[1767895229058,0.90783117,3134.9,3134.0,4.02778346]
[1767895229675,0.90783117,3134.9,3134.0,6.88016722]
[1767895230398,3.19176125,3135.1,3134.0,10.97506615]
[1767895230589,3.19176125,3135.1,3134.2,2.85238376]
[1767895230894,0.41015924,3135.0,3134.1,2.85238376]
[1767895233207,3.18989441,3134.9,3134.1,6.04307194]
[1767895233499,3.79543717,3134.6,3134.0,0.001]
[1767895233689,3.79543717,3134.6,3134.0,0.838]
[1767895233870,0.94305341,3134.6,3134.0,0.838]
[1767895234074,0.94305341,3134.5,3133.0,0.7865985]
[1767895234292,13.01742604,3134.9,3133.5,0.9485985]
[1767895234293,2.85238376,3134.3,3133.5,0.9485985]
[1767895234491,0.94305341,3134.2,3133.3,3.19147309]
[1767895234697,0.99797676,3134.8,3133.3,3.19147309]
[1767895234698,0.94305341,3134.4,3133.3,3.19147309]
[1767895235088,0.837,3134.5,3132.9,4.97746885]
[1767895235089,0.94305341,3134.2,3132.9,4.97746885]
[1767895235284,0.94305341,3134.2,3133.0,0.52966517]
[1767895235507,0.94305341,3134.2,3133.0,6.91332299]
[1767895235810,0.94305341,3134.2,3133.0,6.88140471]
[1767895236006,0.94305341,3134.2,3133.1,0.03191727]
[1767895236198,0.94305341,3134.2,3133.1,0.98051577]
[1767895236395,1.67545856,3134.2,3133.1,2.16959485]
[1767895236704,0.73240515,3134.2,3133.2,0.9485985]
[1767895236878,0.94305341,3134.5,3133.3,0.03191523]
[1767895237079,4.13345908,3134.4,3133.4,3.19142145]
[1767895237706,0.94305341,3134.3,3133.4,3.19142145]
[1767895237936,0.94305341,3134.1,3132.8,0.837]
[1767895238402,0.94305341,3134.1,3132.9,3.19189154]
[1767895238600,0.94305341,3134.1,3133.2,3.1916182]
[1767895238812,0.94305341,3134.1,3133.1,3.22357905]
[1767895238991,0.94305341,3134.1,3133.1,3.19166178]
[1767895239308,3.19081046,3134.0,3132.9,3.19189926]
[1767895239512,0.73245955,3133.9,3132.9,3.19189926]
[1767895239687,0.73245955,3133.9,3132.9,6.38383005]
[1767895239893,0.73245955,3133.9,3132.9,3.19189926]
[1767895240409,0.73245955,3133.9,3132.9,4.14049776]
[1767895240777,0.73245955,3133.9,3132.9,0.9485985]
[1767895240778,1.67551296,3133.9,3132.9,0.9485985]
[1767895240982,0.80571339,3133.8,3132.8,0.837]
[1767895241188,3.19111593,3133.7,3132.8,4.02902146]
[1767895241391,4.13416934,3133.7,3132.8,4.02902146]
[1767895241683,0.80571339,3133.8,3132.9,0.9485985]
[1767895242516,3.99673112,3133.8,3132.9,4.1385985]
[1767895242681,0.39967311,3133.7,3132.9,3.19]
[1767895242881,0.94305341,3133.6,3132.9,3.19]
[1767895243596,3.19079606,3134.1,3132.9,10.52237066]
[1767895243798,4.13384947,3134.1,3132.9,10.52237066]
[1767895244179,0.002,3134.0,3132.9,10.52237066]
[1767895244395,0.73466455,3134.0,3133.0,1.13593707]
[1767895245015,0.73466455,3134.0,3132.9,10.52237066]
[1767895245603,3.19091228,3133.9,3132.9,10.52237066]
[1767895245810,0.94305341,3133.8,3132.9,3.19]
[1767895247486,0.94305341,3133.6,3132.9,3.19]
[1767895248119,0.94305341,3133.6,3132.8,4.027]
[1767895248321,0.94305341,3133.5,3132.8,4.027]
[1767895248686,0.94305341,3133.5,3132.8,3.19]
[1767895249490,0.94305341,3133.5,3132.7,3.19207612]
[1767895249786,4.13438279,3133.5,3132.7,3.19207612]
[1767895250220,0.94305341,3133.5,3132.7,3.19207612]
[1767895250421,1.42973846,3133.5,3132.7,6.3842107]
[1767895250620,0.73252853,3133.6,3132.7,6.3842107]
[1767895251729,3.92375911,3133.6,3132.7,6.3842107]
[1767895251901,0.73252853,3133.6,3132.7,6.3842107]
[1767895254111,0.73252853,3133.6,3132.7,9.5742107]
[1767895254316,0.73252853,3133.6,3132.7,10.5228092]
[1767895254626,3.92375493,3133.6,3132.7,7.33067462]
[1767895254924,0.39237549,3133.5,3132.7,6.38207612]
[1767895255324,0.39237549,3133.5,3132.7,3.19207612]
[1767895255496,1.3354289,3133.5,3132.7,3.19207612]
[1767895255694,1.3354289,3133.5,3132.7,6.3842107]
[1767895255927,0.94305341,3133.5,3132.7,6.3842107]
[1767895258738,0.73252853,3133.6,3133.0,0.001]
[1767895259300,0.73252853,3133.6,3133.0,0.9495985]
[1767895259499,4.13417401,3133.7,3133.0,0.001]
[1767895260252,3.19103417,3133.8,3133.0,0.001]
[1767895260407,4.13408758,3133.8,3133.0,0.001]
[1767895260934,0.94305341,3133.7,3133.0,0.001]
[1767895262130,0.94305341,3133.6,3133.0,0.001]
[1767895263212,0.99326334,3133.5,3133.0,0.001]
[1767895265043,0.99126335,3133.5,3133.0,0.001]
[1767895268260,0.95369513,3133.4,3133.0,0.001]
[1767895268617,3.19146884,3133.4,3132.9,3.19]
[1767895268820,3.19137385,3133.5,3132.9,3.19]
[1767895269124,0.71151911,3133.4,3132.9,3.19]
[1767895269329,3.19137385,3133.5,3132.9,3.19]
[1767895269652,0.95369513,3133.5,3132.9,3.19]
[1767895270548,6.38249478,3133.6,3132.7,0.93638522]
[1767895270850,0.95369513,3133.5,3132.6,0.837]
[1767895271350,0.95369513,3133.5,3132.6,0.83600197]
[1767895271552,0.95369513,3133.3,3132.6,0.83600197]
[1767895272064,0.95369513,3133.0,3132.0,4.0297914]
[1767895272275,0.95369513,3133.0,3132.1,3.1927106]
[1767895272477,0.95369513,3133.0,3132.0,1.77338522]
[1767895272638,4.14558173,3133.0,3132.0,1.77338522]
[1767895272837,4.8793087,3133.0,3132.1,3.19265427]
[1767895273564,3.92509369,3133.4,3132.4,0.93638522]
[1767895273968,7.11656839,3133.4,3132.4,0.93638522]
[1767895274148,8.07026352,3133.4,3132.4,0.93638522]
[1767895274464,7.11656839,3133.4,3132.4,0.93638522]
[1767895274676,0.95369513,3133.3,3132.2,0.96831166]
[1767895274852,0.95369513,3133.2,3132.3,7.32146966]
[1767895275039,0.95369513,3133.4,3132.4,0.93638522]
[1767895275239,0.08674281,3133.9,3132.6,0.93638522]
[1767895275240,0.95369513,3133.9,3132.6,0.93638522]
[1767895275871,0.002,3134.0,3133.5,2.85475907]
[1767895276073,0.002,3134.0,3133.6,0.28547591]
[1767895276276,0.002,3134.0,3133.3,1.77338522]
[1767895276967,0.002,3134.0,3133.3,4.96489514]
[1767895277168,0.002,3134.0,3133.3,0.837]
[1767895277874,0.95569513,3134.0,3133.1,3.19169431]
[1767895278167,0.95569513,3134.0,3133.2,0.837]
[1767895279141,3.19091228,3133.9,3133.2,0.837]
[1767895279346,0.95369513,3133.8,3133.2,0.837]
[1767895281890,0.95369513,3133.7,3133.2,0.837]
[1767895282888,0.73373977,3133.9,3133.2,0.837]
[1767895283190,3.19091566,3133.9,3133.2,0.837]
[1767895283363,4.1465449,3134.0,3133.2,4.0286234]
[1767895283867,0.95569513,3134.0,3133.2,4.0286234]
[1767895284069,3.19282235,3134.0,3133.3,0.93738522]
[1767895284374,0.002,3133.5,3133.3,0.93738522]
[1767895284785,0.002,3133.5,3133.3,0.96930045]
[1767895285391,0.002,3134.3,3133.4,0.93638522]
[1767895285973,0.002,3134.3,3133.4,4.12778214]
[1767895286292,0.002,3134.3,3133.5,0.93638522]
[1767895286891,3.19040347,3134.4,3133.5,0.93638522]
[1767895288111,0.95369513,3134.4,3133.3,4.01146107]
[1767895288409,0.95369513,3133.5,3132.1,0.93638522]
[1767895288611,0.95369513,3133.2,3132.1,0.93638522]
[1767895288777,0.95369513,3133.2,3132.1,3.19273282]
[1767895288974,0.08674281,3133.4,3132.2,0.93638522]
[1767895289199,1.04043794,3133.4,3132.2,0.93638522]
[1767895289534,1.14143892,3133.3,3132.2,0.93638522]
[1767895289882,1.14143892,3133.3,3132.1,3.19273282]
[1767895290223,7.33694547,3133.2,3132.1,3.19273282]
[1767895290395,4.1453203,3133.2,3132.1,3.19273282]
[1767895290911,0.95369513,3133.1,3132.0,0.837]
[1767895291231,1.68738968,3133.0,3132.0,4.0298392]
[1767895292215,4.87925957,3133.0,3132.0,4.0298392]
[1767895292607,4.87925957,3133.0,3132.0,7.22268722]
[1767895292803,4.87925957,3133.0,3132.0,4.0298392]
[1767895293085,1.68738968,3133.0,3132.0,7.22268722]
[1767895293528,0.18774379,3133.3,3132.4,0.98700369]
[1767895293686,3.19131961,3133.5,3132.4,3.84176276]
[1767895293881,0.94364747,3133.4,3132.1,0.03192746]
[1767895294086,0.94364747,3133.4,3132.0,9.31117406]
[1767895294619,4.13517078,3133.3,3132.1,0.98700369]
[1767895294821,4.13517078,3133.3,3132.1,3.87369022]
[1767895294987,0.73266177,3133.2,3132.2,2.20678975]
[1767895295588,3.19063715,3134.2,3133.1,3.84176276]
[1767895295796,3.19063715,3134.2,3133.2,1.82400369]
[1767895295986,0.73342981,3134.3,3133.2,1.82400369]
[1767895295987,3.92397701,3134.3,3133.3,0.98700369]
[1767895296526,3.1905472,3134.3,3133.3,0.98700369]
[1767895296728,3.19037751,3134.5,3133.4,4.17842514]
[1767895296914,0.94364747,3134.4,3133.4,3.19142145]
[1767895298014,3.19050505,3134.3,3133.3,3.19152331]
[1767895298229,3.19050505,3134.3,3133.3,6.38304662]
[1767895298518,3.92295263,3134.3,3133.3,6.80392896]
[1767895298703,0.002,3133.5,3133.3,3.61240565]
[1767895298903,3.92295263,3134.3,3133.3,3.61240565]
[1767895299096,0.002,3133.8,3133.3,3.61240565]
[1767895299585,0.002,3133.8,3133.3,0.42088234]
[1767895299784,0.002,3133.8,3133.2,0.837]
[1767895300225,0.002,3133.8,3133.1,0.98700369]
[1767895300426,0.002,3133.8,3133.0,3.19177235]
[1767895300748,0.002,3133.8,3133.2,4.17862604]
[1767895301200,0.002,3133.8,3133.2,0.98700369]
[1767895301395,0.002,3133.8,3133.1,3.19169187]
[1767895301617,0.002,3133.8,3133.0,3.19178206]
[1767895302310,3.1930141,3133.8,3132.9,4.02884636]
[1767895302497,3.60668026,3133.8,3132.9,4.02884636]
[1767895302840,0.94364747,3133.7,3132.6,0.837]
[1767895303121,0.94364747,3133.7,3132.6,4.02919516]
[1767895303321,0.94364747,3133.7,3132.6,0.837]
[1767895304911,0.94364747,3133.5,3132.6,0.837]
[1767895305222,0.7326083,3133.4,3132.6,0.837]
[1767895305390,0.7326083,3133.4,3132.6,4.02920155]
[1767895306391,0.7326083,3133.4,3132.6,7.22143803]
[1767895306596,3.1911468,3133.7,3132.7,0.03192134]
[1767895307210,3.1911468,3133.7,3132.6,8.20844172]
[1767895307411,3.19304739,3133.8,3132.7,1.01892503]
[1767895307701,3.19304739,3133.8,3132.8,1.01892401]
[1767895309760,0.002,3133.8,3132.9,4.17893448]
[1767895310420,0.002,3133.8,3132.9,4.91602781]
[1767895311425,0.002,3133.5,3132.9,4.91602781]
[1767895311923,0.002,3133.5,3133.0,0.98700369]
[1767895313160,0.94564747,3133.5,3132.6,0.837]
[1767895313520,0.002,3133.5,3132.7,3.19213272]
[1767895313727,0.002,3133.5,3132.7,4.17913641]
[1767895313925,0.32131159,3133.5,3132.7,4.17913641]
[1767895314223,0.002,3133.5,3132.8,0.98700369]
[1767895315133,0.002,3133.5,3132.7,3.19213272]
[1767895315134,0.002,3133.5,3132.9,1.01892299]
[1767895315523,0.002,3133.5,3132.9,0.98700369]
[1767895316935,0.002,3133.5,3132.9,4.17891652]
[1767895317825,0.002,3133.5,3132.9,0.98700369]
[1767895318035,0.94364747,3133.3,3132.4,0.001]
[1767895318257,2.85482146,3133.2,3132.4,0.001]
[1767895318552,0.37984689,3133.2,3132.4,0.001]
[1767895318746,2.85682146,3133.5,3132.4,0.98800369]
[1767895318942,3.80046893,3133.5,3132.4,0.98800369]
[1767895319339,0.94564747,3133.5,3132.6,3.19218396]
[1767895320160,3.19142145,3133.4,3132.6,3.19218396]
[1767895320365,3.19142145,3133.4,3132.5,3.84182515]
[1767895320366,3.19142145,3133.4,3132.5,7.03412178]
[1767895320560,0.73284161,3133.3,3132.5,7.03412178]
[1767895320927,0.73284161,3133.3,3132.5,10.22646016]
[1767895321131,0.002,3133.5,3132.8,0.98700369]
[1767895321833,0.002,3133.5,3133.0,0.98700369]
[1767895325382,0.002,3133.5,3132.8,0.001]